Cogmind - Beta 9.6 @@@ ROGUE MODE // 2020.09.14 @ 11:42:27 Player: scoobysnack1 Result: Destroyed by L-31 Rogue with Katana Performance ------------- Evolutions (1) 500 Regions Visited (2) 400 Robots Destroyed (19) 95 Value Destroyed (450) 450 Prototype IDs (0) 0 Alien Tech Used (0) 0 Bonus (0) 0 TOTAL SCORE: 1445 Bonus ------- None Cogmind --------- Core Integrity 0/400 Matter 196/300 Energy 100/100 System Corruption 0% Temperature Cool (0) Movement Core (150) Ox2 Location -9/Materials Parts ------- > --- POWER (1) -------- (None) > --- PROPULSION (3) --- (None) > --- UTILITY (3) ------ Disposable Heat Sink Medium Storage Unit Signal Interpreter > --- WEAPON (2) ------- (None) > --- INVENTORY (8) ---- Light Treads Signal Interpreter Peak State ------------ > --- POWER ------------ Improved Ion Engine > --- PROPULSION ------- Aluminum Leg Improved Aluminum Leg Improved Aluminum Leg > --- UTILITY ---------- Disposable Heat Sink Medium Storage Unit Signal Interpreter > --- WEAPON ----------- Assault Rifle Heavy Assault Rifle > --- INVENTORY -------- Ion Engine Ion Engine Light Treads Aluminum Leg Aluminum Leg Signal Interpreter Light Assault Rifle [Rating: 14] Favorites ----------- Power Ion Engine Engine Ion Engine Propulsion Light Treads Treads Light Treads Leg Improved Aluminum Leg Utility Signal Interpreter Device Disposable Heat Sink Storage Medium Storage Unit Processor Signal Interpreter Weapon Light Assault Rifle Energy Gun Medium Laser Ballistic Gun Light Assault Rifle Build | -11 -10 -9 ------- Run | Scr Mat Mat Slots Evolved 2 | . . 2 Power . | . . . Propulsion 1 | . . 1 Utility 1 | . . 1 Weapon . | . . . Parts Attached 37 | 7 14 16 Power 4 | 1 . 3 Engine 4 | 1 . 3 Core . | . . . Reactor . | . . . Propulsion 15 | 2 6 7 Treads 5 | 2 3 . Leg 10 | . 3 7 Wheel . | . . . Hover . | . . . Flight . | . . . Utility 6 | 2 1 3 Device 2 | . . 2 Storage 3 | 2 . 1 Processor 1 | . 1 . Hackware . | . . . Protection . | . . . Artifact . | . . . Weapon 12 | 2 7 3 Energy Gun 6 | 1 5 . Energy Cannon . | . . . Ballistic Gun 6 | 1 2 3 Ballistic Cannon . | . . . Launcher . | . . . Special Weapon . | . . . Impact Weapon . | . . . Slashing Weapon . | . . . Piercing Weapon . | . . . Special Melee Weapon . | . . . Unidentified Prototypes . | . . . Parts Lost 18 | . 5 13 Power 3 | . . 3 Propulsion 8 | . 2 6 Utility . | . . . Weapon 7 | . 3 4 Highest Loss Streak 12 | . 4 12 Average Slot Usage (%) 87 | . 85 90 Engine 12 | . 14 10 Treads 12 | . 22 . Leg 15 | . 4 30 Device 3 | . . 9 Storage 6 | . 5 8 Processor 11 | . 11 11 Energy Gun 9 | . 15 1 Ballistic Gun 14 | . 11 18 Naked Turns . | . . . Heaviest Build 21 | 16 16 21 Greatest Support 40 | 40 40 36 Greatest Overweight (x) 4 | . 2 4 Average Overweight (x) . | . . . Largest Inventory Capacity 8 | 8 8 8 Average Capacity 5 | 5 4 7 Most Carried 8 | 1 4 8 Average Carried 3 | . 3 4 Final Capacity 8 | 8 4 8 Final Carried 3 | 1 3 2 Class Distribution -------------------- 83% | Mutant 16% | Scavenger-Mutant Dominant Class ---------------- Mutant | -10/Materials Mutant | -9/Materials Resources | -11 -10 -9 ----------- Run | Scr Mat Mat Matter Collected 617 | 273 123 221 Remotely . | . . . Salvage Created 772 | 81 303 388 Parts 45 | 4 12 29 Haulers Intercepted 1 | . . 1 Recyclers Shooed . | . . . Parts Field Recycled . | . . . Retrieved Matter . | . . . Parts Self-Destructed . | . . . Prevented . | . . . Kills | -11 -10 -9 ------- Run | Scr Mat Mat Combat Hostiles Destroyed 16 | . 6 10 Guns 16 | . 6 10 Classes Destroyed 5 | 1 1 3 Hauler 1 | . . 1 Recycler 2 | 1 . 1 Swarmer 7 | . . 7 Grunt 8 | . 6 2 Sentry 1 | . . 1 Best Kill Streak 5 | 1 2 5 Combat Bots Only 4 | . 2 4 Max Kills in Single Turn 1 | 1 1 1 Gunslinging . | . . . Exploded . | . . . Melee . | . . . Uniques/NPCs Destroyed . | . . . Combat | -11 -10 -9 -------- Run | Scr Mat Mat Damage Taken 2027 | . 532 1495 Core 482 | . 69 413 Absorbed by Shields . | . . . Core Remaining (%) 86 | 100 72 . Volleys Fired 84 | 3 34 47 Largest 2 | 2 2 2 Hottest 105 | 70 105 85 Shots Fired 149 | 6 62 81 Gun 149 | 6 62 81 Cannon . | . . . Launcher . | . . . Special . | . . . Kinetic 112 | 3 29 80 Thermal 22 | 3 18 1 Explosive . | . . . Electromagnetic 15 | . 15 . Robot Hit Streak 28 | 3 28 9 Robot Miss Streak 3 | 1 3 3 Penetration Max . | . . . Secondary Targets 3 | . 2 1 Max Gunslinging Chain 1 | . 1 1 Shots Hit Robots 89 | 4 46 39 Core Hits 38 | 2 17 19 Critical Hits . | . . . Critical Kills . | . . . Critical Parts Destroyed . | . . . Melee Attacks . | . . . Impact . | . . . Slashing . | . . . Piercing . | . . . Sneak Attacks . | . . . Combat Hostiles . | . . . Follow-up Attacks . | . . . Damage Inflicted 1246 | 55 634 557 Guns 1165 | 55 553 557 Cannons . | . . . Explosions 81 | . 81 . Melee . | . . . Ramming . | . . . Kinetic 775 | 29 189 557 Thermal 301 | 26 275 . Explosive . | . . . Electromagnetic 170 | . 170 . Impact . | . . . Slashing . | . . . Piercing . | . . . Highest Corruption . | . . . Average Corruption . | . . . Corruption Purged . | . . . Overload Shots . | . . . Overflow Damage 3 | . 3 . Projectiles . | . . . Explosions 3 | . 3 . Melee . | . . . Knockbacks . | . . . Impact . | . . . Kinetic . | . . . Secondary . | . . . Self-Inflicted Damage 24 | . 24 . Shots 1 | . 1 . Rammed 1 | . . 1 Targets Rammed 1 | . . 1 Kicked . | . . . Crushed . | . . . Highest Temperature 383 | 40 383 27 Average Temperature 92 | 20 108 6 Received Heat Transfer 696 | . 291 405 Effects 2 | . 2 . Interference 2 | . 2 . Siege Activations . | . . . Robots Corrupted . | . . . Combat Hostiles . | . . . Parts Fried 1 | . 1 . Impact Corruptions . | . . . Robots Melted . | . . . Combat Hostiles . | . . . Parts Melted 2 | . 2 . Heat Transferred 693 | 74 619 . Parts Sabotaged . | . . . Parts Stolen . | . . . Parts Stripped . | . . . Power Chain Reactions 1 | . 1 . Missiles Intercepted . | . . . Alert | -11 -10 -9 ------- Run | Scr Mat Mat Peak Influence 312 | 5 138 312 Average Influence 73 | 3 32 146 Maximum Alert Level 1 | . . 1 Low Security (%) 88 | 100 100 69 Level 1 11 | . . 30 Level 2 . | . . . Level 3 . | . . . Level 4 . | . . . Level 5 . | . . . High Security . | . . . Max Security . | . . . Squads Dispatched . | . . . Investigation . | . . . Extermination . | . . . Reinforcement . | . . . Assault . | . . . Garrison . | . . . Intercept . | . . . Construction Impeded . | . . . Haulers Reinforced . | . . . Stealth | -11 -10 -9 --------- Run | Scr Mat Mat Distress Signals . | . . . Communications Jammed . | . . . Distress Signals . | . . . Times Spotted 28 | . 9 19 Peak Tracking Total 6 | . 4 6 Tactical Retreats 1 | . . 1 Traps | -11 -10 -9 ------- Run | Scr Mat Mat Traps Triggered 4 | . 4 . Indirectly . | . . . Trap Hack Attempts . | . . . Triggered . | . . . Disarmed . | . . . Reprogrammed . | . . . Reused . | . . . Traps Extracted . | . . . Installed . | . . . Triggered . | . . . Machines | -11 -10 -9 ---------- Run | Scr Mat Mat Machines Disabled 1 | . . 1 Max in Single Turn 1 | . . 1 Machines Sabotaged . | . . . Garrisons Compromised . | . . . Overloaded Fab Kills . | . . . Fab Network Shutdowns . | . . . Hacking | -11 -10 -9 --------- Run | Scr Mat Mat Machines Accessed 1 | . 1 . Terminals 1 | . 1 . Fabricators . | . . . Repair Stations . | . . . Recycling Units . | . . . Scanalyzers . | . . . Garrison Access . | . . . Total Hacks 2 | . 2 . Successful . | . . . Failed 2 | . 2 . Catastrophic 2 | . 2 . Database Lockouts . | . . . Manual 1 | . 1 . Terminals 2 | . 2 . Fabricators . | . . . Repair Stations . | . . . Recycling Units . | . . . Scanalyzers . | . . . Garrison Access . | . . . Terminal Hacks . | . . . Fabricator Hacks . | . . . Repair Station Hacks . | . . . Recycling Unit Hacks . | . . . Scanalyzer . | . . . Garrison Access Hacks . | . . . Unauthorized Hacks . | . . . Terminals . | . . . Fabricators . | . . . Repair Stations . | . . . Recycling Units . | . . . Scanalyzers . | . . . Garrison Access . | . . . Data Cores Recovered . | . . . Used . | . . . Hacking Detections 1 | . 1 . Full Trace Events . | . . . Feedback Events . | . . . Feedback Blocked . | . . . Robot Schematics Acquired . | . . . Robots Built . | . . . Matter . | . . . Time . | . . . Total Robot Build Rating . | . . . Part Schematics Acquired . | . . . Parts Built . | . . . Matter . | . . . Time . | . . . Total Part Build Rating . | . . . Parts Repaired . | . . . Time . | . . . Parts Recycled . | . . . Recycled Matter . | . . . Retrieved Matter . | . . . Retrieved Components . | . . . Parts Scanalyzed . | . . . Part Schematics Acquired . | . . . Parts Damaged . | . . . Bothacking | -11 -10 -9 ------------ Run | Scr Mat Mat Used RIF Installer . | . . . Robots Hacked . | . . . Non-combat . | . . . Combat . | . . . Robot Hacks Applied . | . . . Relay Couplers Released . | . . . Robots Rewired . | . . . Allies Hacked . | . . . Hacks Repelled . | . . . Allies | -11 -10 -9 -------- Run | Scr Mat Mat Total Allies . | . . . Largest Group . | . . . Highest-Rated Group . | . . . Highest-Rated Ally . | . . . Total Orders . | . . . Ally Attacks . | . . . Total Damage . | . . . Kills . | . . . Allies Corrupted . | . . . Allies Melted . | . . . Intel | -11 -10 -9 ------- Run | Scr Mat Mat Robot Analysis Total . | . . . Derelict Logs Recovered . | . . . Drone Launches . | . . . Drone Recoveries . | . . . Exploration | -11 -10 -9 ------------- Run | Scr Mat Mat Turns Passed 1074 | 91 571 412 Spaces Moved 526 | 46 266 214 Core 14 | 1 3 10 Treads 236 | 45 191 . Legs 276 | . 72 204 Wheels . | . . . Hover . | . . . Flight . | . . . Fastest Speed 50 | 50 120 120 Average Speed 139 | 157 149 122 Slowest Speed 250 | 160 160 250 Overloaded Moves . | . . . Propulsion Burnouts . | . . . Robots Hopped . | . . . Cave-ins Triggered . | . . . Exploration Rate (%) 27 | 4 53 24 Regions Visited 2 Branch Regions . Pre-discovered Areas . | . . . Known Exits Taken 1 | . 1 . Unknown Exits Taken 1 | 1 . . Scrap Searched . | . . . Spaces Dug . | . . . Terrain Destroyed 6 | . 6 . Melee . | . . . Projectile . | . . . AOE 6 | . 6 . Actions | -11 -10 -9 --------- Run | Scr Mat Mat Total 719 | 56 381 282 Wait 61 | . 59 2 Move 524 | 45 265 214 Hop . | . . . Pick Up 6 | 1 4 1 Fast Attach 21 | 7 10 4 Attach 10 | . 3 7 Detach 1 | . 1 . Swap 6 | . 1 5 Drop 5 | . 4 1 Fire 84 | 3 34 47 Melee . | . . . Ram . | . . . Kick 1 | . . 1 Crush . | . . . Escape Stasis . | . . . Rewire . | . . . Trap . | . . . Miscellaneous . | . . . Route ------- -11/Scrapyard -10/Materials -9/Materials (discovered 1 exit: *Min) History --------- Turn | Location | Event 52 | -11/Scrapyard | Discovered new exit (range 15) 92 | -11/Scrapyard | Entered Materials 324 | -10/Materials | Build established: Mutant 577 | -10/Materials | Discovered new exit (range 16) 581 | -10/Materials | Lost 4 parts (2n2w) 632 | -10/Materials | Identified exit to Materials 663 | -10/Materials | Entered another Materials area 663 | -9/Materials | Evolved 2 slots: Propulsion x1, Utility x1 666 | -9/Materials | Discovered new exit (range 14) 692 | -9/Materials | Identified exit to Mines 1037 | -9/Materials | Core integrity fell below 50% 1049 | -9/Materials | Core integrity fell below 20% 1075 | -9/Materials | Destroyed by L-31 Rogue with Katana Last Messages --------------- 01026_ Hvy. Assault Rifle destroyed. 01027_ Imp. Aluminum Leg destroyed. 01028_ Aluminum Leg destroyed. 01033_ Assault Rifle destroyed. 01037_ Imp. Ion Engine destroyed. 01038_ Ion Engine destroyed. 01041_ Aluminum Leg destroyed. 01043_ Acquired 34 matter. 01044_ Slammed into L-31 Rogue. 01045_ T-07 Excavator is excavating. 01051_ Imp. Aluminum Leg destroyed. 01053_ T-07 Excavator is excavating. 01054_ R-06 Scavenger collects Ion Engine. 01055_ Lgt. Assault Rifle destroyed. 01058_ Aluminum Leg destroyed. 01058_ R-06 Scavenger collects Heat Sink. 01058_ T-07 Excavator is excavating. 01061_ U-05 Engineer builds a Wall. 01062_ T-07 Excavator is excavating. 01063_ Ion Engine destroyed. Map ----- +----------------------------------------------------+ | | | | | | | | | ?????????????????????????????????????????????????? | | ??###????????????????????????????????????????????? | | ??# ????????????????????????????????????????????? | | ?## "???????????????????????????????????????????? | | ?? ???????????????????????????????????????????? | | ??# **??????###########?????????????????????????? | | ??# *=??????# #?????????????????????????? | | ??# * ?##### #?????????????????????????? | | ??# ?# # #?????????????????????????? | | ??# """ # + #?????????????????????????? | | ### """ # # #?????????????????????????? | | # """ + # #?????????????????????????? | | # # # #???#?????????????????????? | | ######## # = #?? #?????????????????????? | | #??????# ###/######### #?##??????????????????? | | #??????# # #??????????????????? | | ######## #??????????????????? | | ## # # #???????????????????? | | ## #### ###+####?????????????????????? | | ### # #??# # g #??????????????????????? | | ########## #??# # """l#??????????????????????? | | ==! #??# # """@#??????????????????????? | | =[% #??# # """ #??????????????????????? | | "[ #??# # #??????????????????????? | | " " % ]]] #??# # #??????????????????????? | | """ ]] #??# # #??????????????????????? | | """ ]] #??# #######??????????????????????? | | "" #??# #????????????????????????????? | | #??# #????????????????????????????? | | "T" #??# #????????????????????????????? | | #??# ?????????????????????????????? | | #??? ?????????????????????????????? | | ### ###+####???????????????????????????????????? | | ??# #??????????????????????????????????????????? | | ??# #??????????????????????????????????????????? | | ??# "%#??????????????????????????????????????????? | | ??#"%"#??????????????????????????????????????????? | | ??? " #??????????????????????????????????????????? | | ??? ???????????????????????????????????????????? | | ?????????????????????????????????????????????????? | | ?????????????????????????????????????????????????? | | ?????????????????????????????????????????????????? | | ?????????????????????????????????????????????????? | | ?????????????????????????????????????????????????? | | ?????????????????????????????????????????????????? | | ?????????????????????????????????????????????????? | +----------------------------------------------------+ Best States ------------- Heat Dissipation 28 Coolant Potential 100 Energy Generation 12 Energy Capacity 265 Matter Stores 300 Matter Capacity 300 Sight Range 16 Terrain Scan Density 10 Evasion (%) 40 Recoil Reduction 2 Item Schematics ----------------- None Robot Schematics ------------------ None Fabricated ------------ Nothing Alien Tech Used ----------------- None Achievements -------------- None Challenges ------------ None Game ------ Seed SensorComponentWand Manual? 0 Play Time 00:14:55 Cumulative 28.2 hours Start 2020.09.14 @ 11:26:02 End 2020.09.14 @ 11:42:27 Sessions 1 Manual Loads 0 Difficulty Rogue Special Mode None Game No. 22 Rogue 22 Adventurer 0 Explorer 0 Win Type - Total 0 Types 0/0/0/0/0/0/0 Lore% 17 Gallery% 27 Achievement% 19 Wizard Run 0 Options --------- ASCII 0 Keyboard 0 Movement Mouse Keybinds 0 Fullscreen 1 Font 18/SmallcapsGlow Map View 76x50 Tactical HUD 1 Map Filters NONE Filters NONE Steam 1 RUN: dfe33c44-4fa5-4fa1-8ccc-7617aa01458c